bitfinex/quotes_ETHUSD_20250625
["timestamp","ask_amount","ask_price","bid_price","bid_amount"]
[1750815083652,0.48844479,2452.4,2451.9,4.07838248]
[1750815083867,10.48844479,2452.4,2452.0,4.07829528]
[1750815088399,4.07807778,2452.2,2451.7,4.07869392]
[1750815088560,0.40780778,2452.1,2451.6,10.85184383]
[1750815088759,4.0779708,2452.2,2451.6,10.85184383]
[1750815088996,4.0779708,2452.2,2451.7,4.07877491]
[1750815089764,4.56616399,2452.4,2451.9,4.07846825]
[1750815089962,4.56616399,2452.4,2451.9,4.84996825]
[1750815090259,4.0777192,2452.4,2451.9,4.84996825]
[1750815090702,11.65766274,2452.5,2452.0,4.07828285]
[1750815091281,11.65766274,2452.5,2451.9,4.84987742]
[1750815091282,4.0776618,2452.4,2451.9,4.84987742]
[1750815091480,11.65766274,2452.5,2451.9,4.84987742]
[1750815091481,0.8071,2452.5,2452.0,4.07830342]
[1750815091664,10.0,2452.6,2452.2,4.07793976]
[1750815091869,14.07732534,2452.6,2452.1,4.07807605]
[1750815092072,10.0,2452.6,2452.1,4.07807605]
[1750815092269,14.07738796,2452.6,2452.1,4.07807605]
[1750815098005,10.0,2452.6,2452.2,4.07787557]
[1750815099417,14.0773643,2452.6,2452.1,4.07806448]
[1750815100381,14.0773643,2452.6,2452.1,5.69654909]
[1750815102103,10.0,2452.6,2452.2,4.07796678]
[1750815102616,10.0,2452.6,2452.3,4.07778221]
[1750815104527,4.07687201,2452.9,2452.3,0.797]
[1750815104528,0.8135,2452.9,2452.3,0.797]
[1750815104829,14.07682858,2452.9,2452.5,4.07740029]
[1750815105128,4.89064586,2452.7,2452.2,4.07784231]
[1750815105710,4.07732202,2452.6,2452.1,15.05253655]
[1750815106202,4.07732202,2452.6,2452.2,4.07796906]
[1750815106402,4.89072233,2452.7,2452.2,4.07796906]
[1750815106599,0.8135,2452.7,2452.2,4.07796906]
[1750815106800,4.07730792,2452.6,2452.2,4.07796906]
[1750815107228,4.07730792,2452.6,2452.1,15.05253988]
[1750815107431,4.07749784,2452.5,2452.0,11.33019592]
[1750815107628,4.07767831,2452.4,2451.9,4.8473399]
[1750815107830,4.07767831,2452.4,2452.0,4.07828819]
[1750815108326,14.07754364,2452.5,2452.0,4.07828819]
[1750815109621,14.07754364,2452.5,2452.2,4.07795205]
[1750815109622,10.0,2452.5,2452.2,4.07795205]
[1750815109815,10.0,2452.5,2452.1,4.07804887]
[1750815111436,10.0,2452.5,2452.2,4.07795811]
[1750815112012,10.0,2452.5,2452.1,4.07805593]
[1750815112739,14.07748284,2452.5,2452.0,4.07820873]
[1750815113230,14.07748284,2452.5,2452.0,4.07824111]
[1750815114212,4.07767178,2452.4,2451.9,13.40638331]
[1750815114405,0.833,2452.3,2451.9,12.63738331]
[1750815116652,4.9108688,2452.3,2451.7,0.7552]
[1750815116847,4.9108688,2452.3,2451.8,4.07856546]
[1750815117209,0.833,2452.3,2451.7,0.7552]
[1750815117425,0.833,2452.3,2452.0,4.0782676]
[1750815117639,10.0,2452.5,2451.7,0.7552]
[1750815117640,10.8056,2452.5,2451.7,0.7552]
[1750815117828,10.0,2452.6,2452.3,4.07767084]
[1750815118657,10.8056,2452.8,2452.2,0.7722]
[1750815118831,10.0,2452.6,2452.2,4.85009927]
[1750815119034,10.0,2452.6,2452.3,0.89281317]
[1750815119663,14.07734403,2452.6,2452.1,4.07804575]
[1750815119958,4.07748754,2452.5,2452.1,4.07804575]
[1750815120134,10.0,2452.6,2452.0,4.07820869]
[1750815120135,4.07764696,2452.4,2452.0,4.07820869]
[1750815120338,0.7618,2452.4,2452.0,10.84130198]
[1750815120958,0.7618,2452.4,2451.8,6.763]
[1750815121132,4.07790809,2452.3,2451.8,12.1844208]
[1750815121530,4.07790809,2452.3,2451.3,4.07938678]
[1750815121531,4.07872808,2451.8,2451.3,4.07938678]
[1750815121831,4.07914426,2451.5,2451.0,4.07987369]
[1750815122027,4.07914426,2451.5,2451.0,4.07992738]
[1750815122227,4.90844598,2451.6,2451.0,4.07985894]
[1750815122426,4.07913728,2451.5,2451.1,0.99163091]
[1750815123055,1.787,2451.9,2451.1,0.99163091]
[1750815123056,6.762,2452.2,2451.2,7.5839]
[1750815123258,0.8313,2452.0,2451.6,4.07894422]
[1750815123482,4.0785663,2451.9,2451.2,13.45043041]
[1750815123836,14.9096971,2452.0,2451.4,4.07928326]
[1750815124042,14.9096971,2452.0,2451.5,0.81587398]
[1750815124856,4.07871541,2451.8,2451.2,9.3709]
[1750815125054,4.07880679,2451.7,2451.2,13.45045417]
[1750815125562,4.07871831,2451.8,2451.3,4.07944438]
[1750815126144,4.07884025,2451.7,2451.2,13.45046838]
[1750815126471,0.8313,2452.0,2451.2,9.3709]
[1750815126661,7.5456,2452.3,2451.9,4.07831527]
[1750815126879,10.0,2452.2,2451.8,4.07853048]
[1750815127256,10.0,2452.2,2451.4,4.90827914]
[1750815127257,7.78,2452.5,2452.1,4.07801538]
[1750815127575,10.0,2452.4,2452.0,10.84020413]
[1750815127947,10.0,2452.5,2452.0,10.84020413]
[1750815128143,0.7836,2452.6,2452.0,6.762]
[1750815128343,7.5456,2452.6,2451.7,0.7631]
[1750815128565,4.07747656,2452.5,2452.0,4.07819663]
[1750815128848,4.07765018,2452.4,2451.9,4.07838589]
[1750815129539,4.07765018,2452.4,2451.7,4.84183696]
[1750815129540,4.0778528,2452.3,2451.8,4.07861489]
[1750815129761,4.07766634,2452.4,2451.7,4.84181204]
[1750815129975,4.85209749,2452.3,2451.7,4.07871204]
[1750815130179,7.69794703,2452.3,2451.8,4.07861521]
[1750815131785,0.7742,2452.3,2451.9,4.0783697]
[1750815132273,0.7742,2452.3,2451.9,4.07839523]
[1750815132482,4.85201412,2452.3,2451.8,4.07849892]
[1750815132878,4.85201412,2452.3,2451.7,4.07870077]
[1750815132879,0.7742,2452.3,2451.9,4.07846927]
[1750815133080,4.85202683,2452.3,2451.8,4.07856829]
[1750815134400,0.7742,2452.3,2451.9,4.07846351]
[1750815134777,0.7742,2452.3,2452.0,4.07830186]
[1750815135692,10.0,2452.4,2452.1,4.07806026]
[1750815136493,10.0,2452.4,2452.0,1.62499255]
[1750815136682,10.0,2452.4,2452.0,4.07821314]
[1750815137692,0.7667,2452.3,2451.7,4.07864386]
[1750815137896,4.07922244,2451.5,2451.1,0.806]
[1750815138058,0.7667,2451.4,2451.0,4.07982121]
[1750815138263,0.7667,2451.4,2450.8,0.806]
[1750815138264,0.7667,2451.6,2451.1,0.40798212]
[1750815138479,16.759,2451.8,2451.4,4.07927832]
[1750815138680,10.0,2451.8,2451.4,4.07927832]
[1750815138916,10.0,2451.8,2451.3,4.07939769]
[1750815139420,4.07865403,2451.8,2451.2,4.88555029]
[1750815139718,10.0,2451.6,2451.1,4.48763378]
[1750815140009,10.0,2451.6,2451.0,0.8279]
[1750815140010,4.07913522,2451.5,2451.0,0.8279]
[1750815140212,4.07913522,2451.5,2450.8,9.3739]
[1750815140716,4.07938151,2451.4,2450.9,4.08011369]
[1750815140913,4.07938151,2451.4,2450.8,9.3739]
[1750815140914,4.07949178,2451.3,2450.8,13.45412398]
[1750815141128,4.07964212,2451.2,2450.8,0.8279]
[1750815141331,4.86144564,2451.3,2450.8,4.90818765]
[1750815141817,4.07966064,2451.2,2450.8,0.8279]
[1750815142021,0.7819,2451.3,2450.8,0.8279]
[1750815142328,0.7819,2451.3,2450.5,4.13678948]
[1750815142329,4.07963446,2451.2,2450.6,4.88702656]
[1750815142533,4.07988913,2451.1,2450.6,6.1975008]
[1750815143530,4.07998161,2451.0,2450.6,0.8065]
[1750815143917,4.0798919,2451.1,2450.6,0.8065]
[1750815144118,4.0798919,2451.1,2450.6,4.88709791]
[1750815144321,4.07969351,2451.2,2450.7,4.08044141]
[1750815146758,4.07982151,2451.1,2450.6,4.88705892]
[1750815148804,14.07968633,2451.2,2450.7,4.08045312]
[1750815149500,4.07957576,2451.3,2450.6,0.8065]
[1750815149743,10.0,2451.2,2450.8,4.08020403]
[1750815150110,14.07964414,2451.2,2450.7,4.08040586]
[1750815150944,0.7985,2451.1,2450.4,2.6188]
[1750815151129,4.08008391,2451.0,2450.5,4.08079181]
[1750815151322,4.08016526,2450.9,2450.4,6.69967317]
[1750815151627,4.08016526,2450.9,2450.4,4.91267317]
[1750815151818,4.08062457,2450.7,2450.2,0.8067]
[1750815152018,4.08058878,2450.7,2450.2,4.88796453]
[1750815152219,10.0,2450.9,2450.4,4.08096637]
[1750815152412,14.08015276,2450.9,2450.4,4.08096637]
[1750815153544,4.08032915,2450.8,2450.3,4.08104736]
[1750815153755,4.08072663,2450.6,2450.2,0.8067]
[1750815154321,4.08055536,2450.7,2450.2,4.88796792]
[1750815155334,4.08055536,2450.7,2450.3,4.08112104]
[1750815155552,4.0803685,2450.8,2450.3,4.08112104]
[1750815155917,4.08064317,2450.6,2450.2,0.8067]
[1750815156224,0.8283,2450.6,2450.0,0.8093]
[1750815156429,4.08104742,2450.4,2450.0,0.8093]
[1750815157849,4.08104742,2450.4,2449.9,4.08172077]
[1750815158055,0.8283,2450.6,2449.8,2.604]
[1750815158056,0.7504,2450.2,2449.8,1.784]
[1750815158434,0.7504,2450.2,2449.7,4.08197166]
[1750815158622,0.7504,2450.2,2449.8,4.08193964]
[1750815158823,0.7504,2450.2,2449.6,4.90224138]
[1750815158824,4.83170958,2450.2,2449.7,4.08206112]
[1750815159361,0.7504,2450.2,2449.8,4.08193474]
[1750815159821,4.83170966,2450.2,2449.7,4.08204963]
[1750815160022,4.83170966,2450.2,2449.6,4.90223953]
[1750815160023,4.08148332,2450.1,2449.6,4.90222244]
[1750815161149,4.08181306,2449.9,2449.4,6.61784856]
[1750815161551,4.08181306,2449.9,2449.4,4.83384856]
[1750815161772,4.08181306,2449.9,2449.3,4.08266853]
[1750815161773,0.7546,2449.9,2449.3,4.08266853]
[1750815161919,0.7546,2449.9,2449.0,4.91297533]
[1750815161920,4.08248075,2449.5,2449.0,4.91297533]
[1750815162249,0.7546,2449.6,2448.9,1.785]
[1750815162455,4.08265009,2449.4,2448.9,5.86837393]
[1750815163220,4.08304585,2449.2,2448.8,0.8298]
[1750815163676,4.08315515,2449.1,2448.6,4.90567391]
[1750815164465,4.83832948,2449.2,2448.7,4.08377712]
[1750815164666,10.0,2449.3,2448.7,4.08376521]
[1750815164866,10.0,2449.3,2448.9,4.08339097]
[1750815165540,14.08280905,2449.3,2448.8,4.08355665]
[1750815165735,10.0,2449.3,2448.9,4.08344446]
[1750815165935,14.08280351,2449.3,2448.8,4.08355111]
[1750815166135,11.8920672,2449.3,2448.6,7.5808]
[1750815166440,11.8920672,2449.3,2448.4,3.22738314]
[1750815166441,4.08340155,2449.0,2448.4,3.22738314]
[1750815166642,4.08347111,2448.9,2448.4,4.05648314]
[1750815166863,4.08347111,2448.9,2448.4,4.91324601]
[1750815167059,4.08313809,2449.1,2448.4,4.91324601]
[1750815167060,4.08338044,2449.0,2448.5,4.08412814]
[1750815167471,4.08371262,2448.8,2448.4,0.8291]
[1750815167772,4.08367368,2448.8,2448.4,0.8291]
[1750815168170,4.08380719,2448.7,2448.3,1.785]
[1750815168342,4.08380719,2448.7,2448.2,4.08455264]
[1750815168668,4.08380719,2448.7,2447.9,0.2231316]
[1750815168669,4.87433468,2448.8,2448.3,4.08445924]
[1750815168882,4.08363279,2448.8,2448.1,0.8055]
[1750815169069,10.0,2448.6,2448.1,4.89022012]
[1750815169369,10.0,2448.6,2448.2,4.0846235]
[1750815169966,10.0,2448.6,2448.1,4.89021428]
[1750815170166,10.0,2448.6,2448.2,4.08461115]
[1750815170479,10.0,2448.6,2448.1,4.89022686]
[1750815170680,10.0,2448.6,2447.9,0.2231316]
[1750815170681,16.9240712,2448.6,2447.9,0.2231316]
[1750815170975,4.08434792,2448.4,2447.9,4.30819246]
[1750815171171,4.08418762,2448.5,2448.0,4.0849607]
[1750815171378,4.08432414,2448.4,2447.9,4.30819471]
[1750815171679,0.96735802,2448.5,2448.0,4.08495207]
[1750815171866,0.96735802,2448.5,2447.9,4.30819046]
[1750815172245,5.05158541,2448.5,2448.0,4.08495658]
[1750815172579,5.05158541,2448.5,2447.9,4.30817639]
[1750815173180,11.81158541,2448.5,2448.0,4.08496356]
[1750815173486,11.81151562,2448.5,2447.9,4.30818926]
[1750815173857,11.85410929,2448.4,2447.9,0.2231316]
[1750815174180,10.8226,2448.0,2447.9,0.2231316]
[1750815174384,0.8226,2448.3,2447.9,0.2231316]
[1750815174679,10.0,2448.2,2447.9,0.2231316]
[1750815174977,14.91106732,2448.0,2447.9,0.2231316]
[1750815175274,26.35665544,2448.0,2447.9,0.2231316]
[1750815175778,28.27665568,2448.0,2447.9,0.2231316]
[1750815176277,28.82665568,2448.0,2447.9,0.2231316]
[1750815177778,28.27665568,2448.0,2447.9,0.2231316]
[1750815177948,26.49265568,2448.0,2447.9,0.2231316]
[1750815178283,19.73065568,2448.0,2447.9,0.2231316]
[1750815182077,28.27765568,2448.0,2447.9,0.2231316]
[1750815182586,26.49265568,2448.0,2447.9,0.2231316]
[1750815183376,11.92000024,2448.0,2447.9,0.2231316]
[1750815183578,22.76996756,2448.0,2447.9,0.2231316]
[1750815184689,11.92000024,2448.0,2447.9,0.2231316]
[1750815184872,1.92000024,2448.0,2447.9,0.2231316]
[1750815185059,1.92000024,2448.0,2447.9,4.30826579]
[1750815185265,1.92000024,2448.0,2447.9,5.22732276]
[1750815185604,1.92000024,2448.0,2447.9,5.99252276]
[1750815185968,10.0,2448.7,2448.3,4.08435241]
[1750815186166,4.08352297,2448.9,2448.4,4.84946901]
[1750815186366,4.08346701,2448.9,2448.4,4.84942316]
[1750815186566,10.0,2448.8,2448.4,4.84942316]
[1750815186783,4.08364014,2448.8,2448.4,0.7652]
[1750815187993,10.0,2448.9,2448.4,0.7652]
[1750815188290,14.08357366,2448.9,2448.4,4.84940286]
[1750815188499,4.08363281,2448.8,2448.4,0.7652]
[1750815188701,14.08353873,2448.9,2448.4,1.25015892]
[1750815189198,14.08353873,2448.9,2448.4,5.33444354]
[1750815191216,4.08363316,2448.8,2448.4,1.25015892]
[1750815192192,10.0,2449.3,2448.4,1.25015892]
[1750815192391,10.84725347,2449.1,2448.6,0.8249]
[1750815192716,6.764,2449.1,2448.6,0.8249]
[1750815192916,10.84717417,2449.1,2448.6,4.90882929]
[1750815193215,10.0,2448.9,2448.6,0.8249]
[1750815194416,10.0,2448.9,2448.6,4.90883257]
[1750815195122,4.08288016,2449.3,2448.8,4.08363191]
[1750815195319,4.08288016,2449.3,2448.9,0.8249]
[1750815195699,10.0,2449.1,2448.9,0.8249]
[1750815196811,4.0832993,2449.0,2448.9,0.8249]
[1750815196991,14.08337699,2449.0,2448.7,0.7537]
[1750815200833,4.0835009,2448.9,2448.7,0.7537]
[1750815203006,4.0835009,2448.9,2448.4,4.08420865]
[1750815203007,4.08363279,2448.8,2448.4,0.8054]
[1750815204443,14.08353018,2448.9,2448.4,4.88968023]
[1750815204744,4.0836412,2448.8,2448.4,4.88968023]
[1750815205039,4.08380225,2448.7,2448.4,0.8054]
[1750815205224,4.08368876,2448.8,2448.4,0.8054]
[1750815205427,4.08380368,2448.7,2448.4,0.8054]
[1750815205847,4.08371369,2448.8,2448.4,0.8054]
[1750815206347,4.08386492,2448.7,2448.4,0.8054]
[1750815206644,4.08409729,2448.6,2448.2,0.7582]
[1750815207348,4.08387964,2448.7,2448.2,0.7582]
[1750815207646,4.08387964,2448.7,2448.2,4.84275474]
[1750815208632,4.08365431,2448.8,2448.2,0.7582]
[1750815208633,4.08406064,2448.6,2448.2,0.7582]
[1750815208841,4.08406064,2448.6,2448.2,4.84282045]
[1750815209063,4.08406064,2448.6,2448.2,6.58999326]
[1750815209226,25.3425,2448.9,2448.2,1.74717281]
[1750815209558,4.08415867,2448.5,2448.1,4.08473788]
[1750815209725,4.08415867,2448.5,2448.0,4.84310263]
[1750815214071,4.08415867,2448.5,2448.0,0.7582]
[1750815214072,4.08429995,2448.4,2448.0,0.7582]
[1750815214367,4.08464831,2448.2,2448.0,0.7582]
[1750815214569,4.08464831,2448.2,2447.9,0.2231316]
[1750815214976,4.08496732,2448.0,2447.9,0.2231316]
[1750815216574,4.08488675,2448.1,2447.9,0.2231316]
[1750815217264,4.08471547,2448.2,2447.9,0.2231316]
[1750815218069,14.0845314,2448.3,2448.0,0.7928]
[1750815219271,4.08480045,2448.1,2448.0,0.7928]
[1750815219458,4.08496732,2448.0,2447.9,0.2231316]
[1750815222170,14.08496732,2448.0,2447.9,0.2231316]
[1750815224180,14.85836732,2448.0,2447.9,0.2231316]
[1750815224979,10.0,2448.0,2447.9,1.0463316]
[1750815225146,10.0,2448.0,2447.9,1.55950701]
[1750815225860,10.0,2448.0,2447.9,1.0463316]
[1750815228047,4.08452263,2448.3,2447.9,1.0463316]
[1750815228243,10.0,2448.2,2447.9,5.13143298]
[1750815228701,14.08447842,2448.3,2447.9,1.0463316]
[1750815228904,14.08447842,2448.3,2447.9,1.96803166]
[1750815229307,4.0846551,2448.2,2447.9,1.96803166]
[1750815229606,14.0846551,2448.2,2447.9,1.96803166]
[1750815230176,14.0846551,2448.2,2447.9,1.0463316]
[1750815230406,10.0,2448.1,2447.9,1.0463316]
[1750815231092,4.08481447,2448.1,2447.9,1.0463316]
[1750815231886,4.08496732,2448.0,2447.9,1.0463316]
[1750815232104,4.08496732,2448.0,2447.9,0.2231316]
[1750815234224,15.72344719,2448.0,2447.9,0.2231316]
[1750815234988,14.90194719,2448.0,2447.9,0.2231316]
[1750815235301,14.08496732,2448.0,2447.9,0.2231316]
[1750815238023,10.0,2448.0,2447.9,0.2231316]
[1750815240413,14.08496732,2448.0,2447.9,0.2231316]
[1750815241217,14.08496732,2448.0,2447.9,0.1731316]
[1750815244624,14.85176732,2448.0,2447.9,0.1731316]
[1750815244826,17.4215258,2448.0,2447.9,0.1731316]
[1750815245331,16.6547258,2448.0,2447.9,0.1731316]
[1750815246628,23.4157258,2448.0,2447.9,0.1731316]
[1750815247455,24.1825258,2448.0,2447.9,0.1731316]
[1750815247628,23.4157258,2448.0,2447.9,0.1731316]
[1750815247808,20.84596732,2448.0,2447.9,0.1731316]
[1750815249820,10.0,2448.0,2447.9,0.1731316]
[1750815250017,4.08418705,2448.5,2447.9,5.05171409]
[1750815250221,7.78,2449.3,2447.9,0.9666316]
[1750815250222,4.08471971,2448.2,2447.9,0.9666316]
[1750815250614,4.08480365,2448.1,2447.9,0.9666316]
[1750815251529,4.08480365,2448.1,2447.9,0.1731316]
[1750815251530,4.08496732,2448.0,2447.9,0.1731316]
[1750815251732,0.89294147,2448.1,2447.9,0.1731316]
[1750815251733,4.97783195,2448.1,2447.9,0.1731316]
[1750815251932,11.60561291,2448.3,2447.9,0.1731316]
[1750815251933,6.761,2448.3,2447.9,0.1731316]
[1750815252115,4.8450336,2448.2,2447.9,0.1731316]
[1750815252316,4.08496732,2448.0,2447.9,0.1731316]
[1750815252634,4.08471056,2448.2,2448.0,0.7697]
[1750815252835,4.08481967,2448.1,2447.9,0.1731316]
[1750815254270,2.25502877,2448.1,2447.9,0.1731316]
[1750815254441,4.08496732,2448.0,2447.9,0.1731316]
[1750815254632,14.08496732,2448.0,2447.9,0.1731316]
[1750815260397,10.0,2448.0,2447.9,0.1731316]
[1750815260555,17.78,2448.2,2447.9,0.9282316]
[1750815260754,10.0,2448.4,2448.0,5.40758491]
[1750815261358,14.08438622,2448.4,2448.0,1.3226457]
[1750815262695,10.84388677,2448.7,2448.2,4.88508325]
[1750815262854,10.0,2448.6,2448.2,4.88508325]
[1750815263054,10.0,2448.5,2448.2,0.8005]
[1750815263252,10.0,2448.5,2448.3,0.4885196]
[1750815264961,14.08389354,2448.7,2448.3,0.4885196]
[1750815265161,14.08389354,2448.7,2448.2,4.88512438]
[1750815265907,0.8236,2449.3,2448.6,0.7654]
[1750815266191,7.78,2449.4,2448.7,0.7613]
[1750815266192,4.08316673,2449.1,2448.7,0.7613]
[1750815266419,10.0,2449.0,2448.7,0.7613]
[1750815266579,14.0830545,2449.2,2448.7,4.84509948]
[1750815266786,14.54,2449.4,2448.7,1.83241699]
[1750815266787,7.78,2449.4,2448.7,1.83241699]
[1750815267030,4.08249657,2449.5,2449.0,4.08322334]
[1750815267177,4.08249657,2449.5,2449.1,0.7613]
[1750815267380,1.39974905,2449.6,2449.1,0.7613]
[1750815267381,11.39974905,2449.6,2449.1,0.7613]
[1750815267577,15.48206854,2449.6,2449.1,4.84433072]
[1750815267817,10.0,2449.4,2449.1,0.7613]
[1750815271027,4.08271807,2449.4,2449.1,0.7613]
[1750815271208,6.039209,2449.4,2449.1,0.7613]
[1750815271413,16.039209,2449.4,2449.1,0.7613]
[1750815271720,16.039209,2449.4,2448.8,4.08353107]
[1750815271721,4.08311057,2449.2,2448.8,0.8327]
[1750815272393,14.08288287,2449.3,2448.8,4.91632624]
[1750815273688,14.08288287,2449.3,2448.8,4.98365428]
[1750815273895,10.0,2449.5,2449.0,0.7918]
[1750815274226,10.0,2449.3,2449.0,0.7918]
[1750815274423,4.08254951,2449.5,2449.0,4.8750878]
[1750815275286,10.0,2449.4,2449.0,4.8750878]
[1750815276335,15.93674905,2449.6,2449.2,0.7628]
[1750815276336,1.39974905,2449.6,2449.2,0.7628]
[1750815276527,10.83856372,2450.1,2449.6,0.8306]
[1750815276828,10.0,2450.0,2449.6,0.8306]
[1750815277421,4.08188341,2449.9,2449.3,4.08265151]
[1750815277649,4.08188341,2449.9,2449.2,4.08296586]
[1750815277650,4.08188341,2449.9,2449.4,4.08262085]
[1750815277929,6.65464173,2449.9,2449.4,4.08262085]
[1750815278134,6.65464173,2449.9,2449.5,0.8224]
[1750815279632,2.57275832,2449.9,2449.5,4.90484615]
[1750815280429,0.801,2450.0,2449.5,0.8224]
[1750815280638,10.0,2450.0,2449.7,4.08203182]
[1750815281931,7.78,2450.4,2449.6,1.78]
[1750815282132,7.78,2450.4,2450.3,4.85763292]
[1750815282352,1.49096667,2450.9,2450.5,4.08077228]
[1750815282503,0.66666667,2450.9,2450.6,4.08061569]
[1750815282840,10.66666667,2450.9,2450.6,4.08061569]
[1750815284418,10.66666667,2450.9,2450.5,4.08072008]
[1750815285647,10.66666667,2450.9,2450.6,4.08057573]
[1750815285804,10.66666667,2450.9,2450.8,4.08030031]
[1750815286011,0.66666667,2450.9,2450.8,4.91080031]
[1750815287451,0.66666667,2450.9,2450.8,5.46080031]
[1750815287613,0.66666667,2450.9,2450.8,6.59292449]
[1750815287816,0.8126,2452.2,2451.7,4.07867951]
[1750815288012,6.761,2452.5,2451.9,4.07833378]
[1750815288013,4.89021175,2452.5,2451.9,4.07833378]
[1750815288229,4.89021175,2452.5,2451.8,4.90459687]
[1750815288230,14.89007621,2452.5,2451.8,4.90459687]
[1750815288427,14.89007621,2452.5,2451.9,4.07837361]
[1750815289130,4.07765298,2452.4,2451.9,4.07837361]
[1750815289336,4.07666602,2453.0,2452.3,0.7829]
[1750815289337,4.90356044,2452.8,2452.3,0.7829]
[1750815289524,10.0,2452.7,2452.3,0.7829]
[1750815289723,14.07718657,2452.7,2452.3,0.7829]
[1750815290239,14.07753361,2452.5,2452.0,4.07822234]
[1750815290454,4.07753361,2452.5,2452.0,5.85722234]
[1750815290818,4.07753361,2452.5,2452.0,1.779]
[1750815291251,14.07753361,2452.5,2452.0,1.779]
[1750815291951,10.0,2452.4,2452.0,5.85728352]
[1750815292652,14.077247,2452.7,2452.0,5.85725671]
[1750815292830,10.0,2452.8,2452.4,0.7989]
[1750815293420,14.07697611,2452.8,2452.4,0.7989]
[1750815296420,4.07715072,2452.7,2452.4,0.7989]
[1750815296853,0.7966,2453.0,2452.0,1.8472174]
[1750815297038,4.07744135,2452.6,2452.0,4.07821308]
[1750815297245,4.07729631,2452.7,2452.1,4.07806491]
[1750815297443,10.0,2452.8,2452.0,0.55]
[1750815297618,10.0,2452.8,2452.3,4.07764754]
[1750815297819,10.0,2452.8,2452.4,4.077618]
[1750815298037,10.0,2452.8,2452.4,4.867118]
[1750815298755,4.07697485,2452.8,2452.4,0.7895]
[1750815298919,4.07714441,2452.7,2452.4,0.7895]
[1750815299120,4.07705135,2452.8,2452.4,0.7895]
[1750815299360,4.07704226,2452.8,2452.3,1.779]
[1750815299535,4.07704226,2452.8,2452.3,5.85680095]
[1750815299726,4.07704226,2452.8,2452.3,6.73232839]
[1750815300744,4.07704226,2452.8,2451.6,4.07895022]
[1750815300745,10.0,2452.5,2451.9,0.785]
[1750815300924,4.07775846,2452.4,2451.9,0.785]
[1750815301127,4.07805292,2452.2,2451.9,0.785]
[1750815301342,4.0778816,2452.3,2451.9,0.785]
[1750815301636,4.07767409,2452.4,2451.9,0.785]
[1750815301637,4.07798736,2452.2,2451.9,0.785]
[1750815301941,0.8005,2452.3,2451.6,0.785]
[1750815302122,4.07821386,2452.1,2451.6,4.86394715]
[1750815302322,4.07833596,2452.0,2451.6,0.785]
[1750815303561,4.07821673,2452.1,2451.6,4.86396517]
[1750815303894,4.0783092,2452.0,2451.6,0.785]
[1750815304170,4.07821703,2452.1,2451.6,4.86396182]
[1750815304326,0.8005,2452.5,2452.0,4.07814262]
[1750815304526,0.8005,2452.5,2451.9,4.07838226]
[1750815304527,10.0,2452.4,2451.9,4.07838226]
[1750815304926,0.8005,2452.5,2451.9,4.07838226]
[1750815305158,10.0,2452.4,2452.0,4.07828815]
[1750815305662,4.07764402,2452.4,2451.7,4.07873571]
[1750815305861,4.07824455,2452.1,2451.7,1.787]
[1750815306039,4.07790346,2452.3,2451.7,1.787]
[1750815306040,4.07790346,2452.3,2451.8,4.07863298]
[1750815306239,10.0,2452.3,2451.9,4.0784546]
[1750815307361,0.8005,2452.5,2452.0,4.07829946]
[1750815307362,4.87805693,2452.5,2452.0,4.07829946]
[1750815307527,4.07755693,2452.5,2452.1,0.8]
[1750815307733,10.0,2452.6,2452.1,0.8]
[1750815307734,10.0,2452.3,2452.1,0.8]
[1750815307947,10.0,2452.3,2451.9,4.87839704]
[1750815308143,4.07756209,2452.5,2452.0,4.07828818]
[1750815308359,10.0,2452.3,2451.9,4.87838018]
[1750815309064,4.07755017,2452.5,2452.0,4.07829999]
[1750815309238,10.0,2452.3,2451.9,4.87840603]
[1750815310937,10.0,2452.4,2452.0,4.07828694]
[1750815312071,6.23779917,2452.6,2452.1,4.0781273]
[1750815312248,14.07750423,2452.5,2452.0,4.07821504]
[1750815313267,14.07750423,2452.5,2452.1,4.07813421]
[1750815313469,0.7942,2453.0,2452.0,0.55]
[1750815313649,4.07724036,2452.7,2452.3,0.7526]
[1750815313964,10.0,2452.6,2452.3,4.8303851]
[1750815314369,6.754,2453.1,2452.3,4.8303851]
[1750815314370,7.78,2453.2,2452.3,1.82214694]
[1750815314534,0.7942,2453.2,2452.4,0.7526]
[1750815314734,10.0,2453.0,2452.6,4.07730272]
[1750815314934,4.87056074,2453.2,2452.4,4.83023823]
[1750815314935,4.07683441,2452.9,2452.4,0.7526]
[1750815315136,4.07683441,2452.9,2452.3,1.06954694]
[1750815315137,4.07707031,2452.8,2452.3,5.14724339]
[1750815315340,4.07688064,2452.9,2452.4,4.07763142]
[1750815315569,4.07701196,2452.8,2452.3,5.147268]
[1750815315743,4.87121196,2452.8,2452.3,5.147268]
[1750815316767,4.0771659,2452.7,2452.2,6.61749459]
[1750815317381,4.87126514,2452.8,2452.3,4.07779382]
[1750815318275,4.07716466,2452.7,2452.2,6.61749335]
[1750815319066,4.07764244,2452.4,2452.0,0.7526]
[1750815319270,4.077553,2452.5,2452.0,4.83089706]
[1750815319470,10.0,2452.6,2452.2,4.07795571]
[1750815320780,1.787,2453.1,2452.1,4.07813241]
[1750815320781,4.85743261,2453.0,2452.1,1.352]
[1750815320978,4.85743261,2453.0,2452.4,4.07750996]
[1750815320979,4.07681221,2452.9,2452.4,4.07750996]
[1750815321275,4.07648677,2453.1,2452.6,4.07727405]
[1750815321276,14.07654127,2453.1,2452.6,4.07727405]
[1750815321456,10.7807,2453.2,2452.7,4.07703157]
[1750815321457,14.85713051,2453.2,2452.7,4.07703157]
[1750815322890,14.85713051,2453.2,2452.6,4.86854249]
[1750815322891,4.07652248,2453.1,2452.6,4.86854249]
[1750815323084,4.07652248,2453.1,2452.6,5.76313858]
[1750815323289,4.07664307,2453.0,2452.6,1.68589609]
[1750815323459,10.0,2452.8,2452.4,4.07758512]
[1750815324752,4.07724333,2452.7,2452.3,0.7533]
[1750815324952,4.85494333,2452.7,2452.2,4.07788239]
[1750815325154,4.85494333,2452.7,2452.2,5.9971117]
[1750815327661,0.7777,2452.7,2452.3,4.07780027]
[1750815328092,4.85484579,2452.7,2452.2,5.99713566]
[1750815328389,14.07705971,2452.8,2452.3,4.07778504]
[1750815328593,14.87513455,2453.1,2452.6,4.07723303]
[1750815331204,0.7803,2453.3,2452.5,1.787]
[1750815331407,10.7803,2453.3,2452.6,4.07730571]
[1750815331603,14.85651639,2453.3,2452.8,4.89937322]